fUST/lending_fUST_20251212
["ID","MTS","AMOUNT","RATE_DAILY","PERIOD"]
[398316448,1765532255785,150.0,7.27e-05,2]
[398316449,1765532256188,229.44,7.931e-05,2]
[398316450,1765532262708,5000.0,8.424e-05,2]
[398316451,1765532270509,2541.39,8.424e-05,2]
[398316452,1765532270530,2458.61,8.424e-05,2]
[398316453,1765532285703,5000.0,8.424e-05,2]
[398316454,1765532293597,2541.4,8.424e-05,2]
[398316455,1765532293619,1059.76661989,8.424e-05,2]
[398316456,1765532309823,5000.0,8.424e-05,2]
[398316457,1765532336556,150.0,7.269e-05,2]
[398316458,1765532336973,219.78,7.93e-05,2]
[398316459,1765532417778,150.0,7.374e-05,2]
[398316460,1765532418194,210.37,8.045e-05,2]
[398316461,1765532484901,-540.0,8.591e-05,2]
[398316462,1765532489205,5000.0,8.591e-05,2]
[398316463,1765532497558,3920.01,8.591e-05,2]
[398316464,1765532497580,1079.99,8.591e-05,2]
[398316465,1765532500208,-5000.0,8.609e-05,2]
[398316466,1765532505730,0.01,8.609e-05,2]
[398316467,1765532505752,4999.99,8.609e-05,2]
[398316468,1765532507244,150.0,7.302e-05,2]
[398316469,1765532507672,201.2,7.966e-05,2]
[398316470,1765532513576,4648.82,8.609e-05,2]
[398316471,1765532513601,351.18,8.609e-05,2]
[398316472,1765532530683,5000.0,8.42e-05,2]
[398316473,1765532538766,5000.0,8.424e-05,2]
[398316474,1765532553632,0.01,8.424e-05,2]
[398316475,1765532553652,4999.99,8.424e-05,2]
[398316476,1765532575953,-5000.0,8.544e-05,2]
[398316477,1765532576708,0.01,8.424e-05,2]
[398316478,1765532576730,4999.99,8.424e-05,2]
[398316479,1765532585055,150.0,7.309e-05,2]
[398316480,1765532585443,192.26,7.974e-05,2]
[398316481,1765532591022,-288.39,8.638e-05,2]
[398316482,1765532592836,5000.0,8.544e-05,2]
[398316483,1765532601143,4423.23,8.638e-05,2]
[398316484,1765532601167,576.77,8.638e-05,2]
[398316485,1765532621515,-5000.0,8.523e-05,2]
[398316486,1765532625522,0.01,8.523e-05,2]
[398316487,1765532625545,4999.99,8.523e-05,2]
[398316488,1765532636525,-5000.0,8.609e-05,2]
[398316489,1765532639586,0.01,4.934e-05,2]
[398316490,1765532639611,161.4580135,4.934e-05,2]
[398316491,1765532640357,5000.0,8.609e-05,2]
[398316492,1765532648701,4838.5519865,8.609e-05,2]
[398316493,1765532648730,161.4480135,8.609e-05,2]
[398316494,1765532669493,150.0,7.288e-05,2]
[398316495,1765532670033,176.2,7.95e-05,2]
[398316496,1765532673078,5000.0,8.424e-05,2]
[398316497,1765532695370,4673.81,8.424e-05,2]
[398316498,1765532695392,326.19,8.424e-05,2]
[398316499,1765532697387,-5000.0,8.574e-05,2]
[398316500,1765532710739,0.01,8.574e-05,2]
[398316501,1765532710759,4999.99,8.574e-05,2]
[398316502,1765532719099,5000.0,8.574e-05,2]
[398316503,1765532720830,-264.31,8.613e-05,2]
[398316504,1765532727544,-5000.0,8.661e-05,2]
[398316505,1765532733960,0.01,8.661e-05,2]
[398316506,1765532733981,4999.99,8.661e-05,2]
[398316507,1765532741813,5000.0,8.661e-05,2]
[398316508,1765532758211,-5000.0,8.661e-05,2]
[398316509,1765532759171,0.01,8.574e-05,2]
[398316510,1765532759195,4999.99,8.574e-05,2]
[398316511,1765532759235,150.0,7.289e-05,2]
[398316512,1765532759602,172.63,7.952e-05,2]
[398316513,1765532760003,258.94,8.615e-05,2]
[398316514,1765532767304,4418.45,8.661e-05,2]
[398316515,1765532767333,581.55,8.661e-05,2]
[398316516,1765532788388,-5000.0,8.574e-05,2]
[398316517,1765532791926,0.01,8.574e-05,2]
[398316518,1765532791953,4999.99,8.574e-05,2]
[398316519,1765532803477,-5000.0,8.661e-05,2]
[398316520,1765532807403,0.01,8.661e-05,2]
[398316521,1765532807426,4999.99,8.661e-05,2]
[398316522,1765532815327,5000.0,8.661e-05,2]
[398316523,1765532834956,-5000.0,8.574e-05,2]
[398316524,1765532838374,0.01,7.393e-05,2]
[398316525,1765532838399,149.99,7.393e-05,2]
[398316526,1765532839198,180.35,8.065e-05,2]
[398316527,1765532839455,5000.0,8.574e-05,2]
[398316529,1765532850125,-5000.0,8.661e-05,2]
[398316530,1765532854648,0.01,8.661e-05,2]
[398316531,1765532854670,4999.99,8.661e-05,2]
[398316532,1765532862497,5000.0,8.661e-05,2]
[398316534,1765532871077,5000.0,8.574e-05,2]
[398316535,1765532878823,2946.40147667,8.574e-05,2]
[398316536,1765532886787,2053.60852333,8.574e-05,2]
[398316537,1765532886809,2946.39147667,8.574e-05,2]
[398316538,1765532894862,5000.0,8.574e-05,2]
[398316539,1765532909692,2053.61852333,8.574e-05,2]
[398316540,1765532909714,2946.38147667,8.574e-05,2]
[398316541,1765532918385,150.0,7.294e-05,2]
[398316542,1765532918897,238.77,7.957e-05,2]
[398316543,1765532926222,-358.16,8.62e-05,2]
[398316544,1765532933286,5000.0,8.62e-05,2]
[398316545,1765532941172,-5000.0,8.661e-05,2]
[398316546,1765532955525,0.01,8.661e-05,2]
[398316547,1765532955549,4999.99,8.661e-05,2]
[398316548,1765532978485,5000.0,8.574e-05,2]
[398316549,1765532998745,150.0,7.292e-05,2]
[398316550,1765532999344,219.76,7.955e-05,2]
[398316551,1765533002058,-329.64,8.617e-05,2]
[398316552,1765533002670,5000.0,8.574e-05,2]
[398316553,1765533024762,4340.73,8.617e-05,2]
[398316554,1765533024788,659.27,8.617e-05,2]
[398316684,1765533037753,-2543.33468453,8.686e-05,2]
[398316686,1765533037766,-2456.66531547,8.686e-05,2]
[398316688,1765533037775,-542.0,8.686e-05,2]
[398316690,1765533037785,-150.0,8.774e-05,2]
[398316692,1765533037794,-163.0,8.8e-05,2]
[398316694,1765533037804,-162.99,8.8e-05,2]
[398316696,1765533037813,-439.51,9.28e-05,2]
[398316698,1765533037823,-931.27857454,9.409e-05,2]
[398316700,1765533037835,-163.0,9.8e-05,2]
[398316702,1765533037848,-305.9348537,9.863e-05,2]
[398316703,1765533037858,-302.1267499,9.863e-05,2]
[398316704,1765533037867,-505.5282042,9.87e-05,2]
[398316705,1765533037876,-302.1267499,9.87e-05,2]
[398316706,1765533037886,-549.39,9.943e-05,2]
[398316707,1765533037895,-243.18401625,0.0001,2]
[398316708,1765533037904,-300.0,0.00010047,2]
[398316709,1765533037914,-1655.60635475,0.00010048,2]
[398316710,1765533037925,-302.1267499,0.00010478,2]
[398316711,1765533037934,-598.6079513,0.00010563,2]
[398316712,1765533037943,-659.27,0.00010606,2]
[398316713,1765533037953,-1200.0,0.00010684,2]
[398316714,1765533037962,-597.2446838,0.00010685,2]
[398316715,1765533037972,-597.2446838,0.00010685,2]
[398316716,1765533037982,-1203.9079946,0.00010685,2]
[398316717,1765533037991,-302.1267499,0.00010685,2]
[398316718,1765533038001,-302.1267499,0.00010685,2]
[398316719,1765533038010,-302.1267499,0.00010685,2]
[398316720,1765533038019,-302.1267499,0.00010685,2]
[398316721,1765533038028,-302.1267499,0.00010685,2]
[398316722,1765533038038,-604.1888834,0.00010685,2]
[398316723,1765533038049,-302.1267499,0.00010685,2]
[398316724,1765533038058,-182.7125123,0.00010685,2]
[398316725,1765533038068,-177.0,0.00010774,2]
[398316726,1765533038077,-302.1267499,0.000108,2]
[398316727,1765533038087,-171.23268602,0.00010829,2]
[398316728,1765533038096,-255.0,0.00010835,2]
[398316729,1765533038106,-574.12855637,0.00010835,2]
[398316730,1765533038115,-20000.0,0.00010835,2]
[398316731,1765533038125,-999.3311714,0.00010835,2]
[398316732,1765533038135,-2773.56790519,0.00010835,2]
[398316733,1765533038144,-286.87288552,0.00010835,2]
[398316734,1765533038154,-1059.01056487,0.00010835,2]
[398316735,1765533038164,-323.17966882,0.00010837,2]
[398316736,1765533038173,-574.54163346,0.00010837,2]
[398316737,1765533038183,-300.0,0.00010897,2]
[398316738,1765533038192,-300.0,0.00010897,2]
[398316739,1765533038202,-300.0,0.00010897,2]
[398316740,1765533038212,-300.0,0.00010897,2]
[398316741,1765533038222,-300.0,0.00010897,2]
[398316742,1765533038231,-163.0,0.000109,2]
[398316743,1765533038241,-1000.0,0.000109,2]
[398316744,1765533038251,-1000.0,0.000109,2]
[398316745,1765533038261,-1000.0,0.000109,2]
[398316746,1765533038271,-330.62496976,0.00010959,7]
[398316747,1765533038280,-302.1267499,0.00011,2]
[398316748,1765533038290,-420.0,0.00011051,2]
[398316749,1765533038300,-604.1888834,0.00011078,2]
[398316750,1765533038310,-2000.0,0.00011118,3]
[398316751,1765533038320,-220.6071418,0.00011119,3]
[398316752,1765533038329,-201.71354004,0.00011256,2]
[398316753,1765533038339,-769.15,0.00011269,2]
[398316754,1765533038348,-216.85764328,0.00011281,2]
[398316755,1765533038358,-10000.0,0.000113,2]
[398316756,1765533038368,-308.21883484,0.00011328,2]
[398316757,1765533038378,-376.93587151,0.0001138,2]
[398316758,1765533038387,-441.04173625,0.0001138,2]
[398316759,1765533038397,-500.0,0.0001138,2]
[398316760,1765533038407,-500.0,0.0001138,2]
[398316761,1765533038416,-500.0,0.0001138,2]
[398316762,1765533038426,-500.0,0.0001138,2]
[398316763,1765533038435,-1002.60341682,0.0001138,2]
[398316764,1765533038445,-500.0,0.0001138,2]
[398316765,1765533038454,-500.0,0.0001138,2]
[398316766,1765533038464,-1002.60341682,0.0001138,2]
[398316767,1765533038473,-500.0,0.0001138,2]
[398316768,1765533038483,-500.0,0.0001138,2]
[398316769,1765533038499,-500.0,0.0001138,2]
[398316770,1765533038509,-500.0,0.0001138,2]
[398316771,1765533038518,-500.0,0.0001138,2]
[398316772,1765533038528,-1002.60341682,0.0001138,2]
[398316773,1765533038539,-500.0,0.0001138,2]
[398316774,1765533038549,-500.0,0.0001138,2]
[398316775,1765533038558,-500.0,0.0001138,2]
[398316776,1765533038568,-1002.60341682,0.0001138,2]
[398316777,1765533038577,-517.81290346,0.0001138,2]
[398316778,1765533038587,-500.0,0.0001138,2]
[398316779,1765533038597,-500.0,0.0001138,2]
[398316780,1765533038607,-500.0,0.0001138,2]
[398316781,1765533038617,-1002.60341682,0.0001138,2]
[398316782,1765533038627,-500.0,0.0001138,2]
[398316783,1765533038637,-500.0,0.0001138,2]
[398316784,1765533038647,-500.0,0.0001138,2]
[398316785,1765533038656,-435.22797067,0.0001138,2]
[398316786,1765533038666,-500.0,0.0001138,2]
[398316787,1765533038675,-1002.60341682,0.0001138,2]
[398316788,1765533038692,-632.36781931,0.0001138,2]
[398316789,1765533038707,-498.2182028,0.0001138,2]
[398316790,1765533038717,-500.0,0.0001138,2]
[398316791,1765533038726,-1002.60341682,0.0001138,2]
[398316792,1765533038736,-500.0,0.0001138,2]
[398316793,1765533038746,-500.0,0.0001138,2]
[398316794,1765533038755,-500.0,0.0001138,2]
[398316795,1765533038765,-500.0,0.0001138,2]
[398316796,1765533038775,-500.0,0.0001138,2]
[398316797,1765533038784,-1002.60341682,0.0001138,2]
[398316798,1765533038794,-500.0,0.0001138,2]
[398316799,1765533038804,-1002.60341682,0.0001138,2]
[398316800,1765533038813,-500.0,0.0001138,2]
[398316801,1765533038823,-1002.60341682,0.0001138,2]
[398316802,1765533038832,-500.0,0.0001138,2]
[398316803,1765533038842,-1002.60341682,0.0001138,2]
[398316804,1765533038852,-500.0,0.0001138,2]
[398316805,1765533038862,-500.0,0.0001138,2]
[398316806,1765533038871,-1002.60341682,0.0001138,2]
[398316807,1765533038881,-500.0,0.0001138,2]
[398316808,1765533038890,-1002.60341682,0.0001138,2]
[398316809,1765533038901,-500.0,0.0001138,2]
[398316810,1765533038912,-1002.60341682,0.0001138,2]
[398316811,1765533038930,-500.0,0.0001138,2]
[398316812,1765533038940,-1002.60341682,0.0001138,2]
[398316813,1765533038950,-500.0,0.0001138,2]
[398316814,1765533038961,-1002.60341682,0.0001138,2]
[398316815,1765533038971,-500.0,0.0001138,2]
[398316816,1765533038981,-1002.60341682,0.0001138,2]
[398316817,1765533038992,-500.0,0.0001138,2]
[398316818,1765533039002,-1002.60341682,0.0001138,2]
[398316819,1765533039014,-500.0,0.0001138,2]
[398316820,1765533039025,-1002.60341682,0.0001138,2]
[398316821,1765533039035,-500.0,0.0001138,2]
[398316822,1765533039047,-1002.60341682,0.0001138,2]
[398316823,1765533039059,-500.0,0.0001138,2]
[398316824,1765533039070,-1002.60341682,0.0001138,2]
[398316825,1765533039080,-1002.60341682,0.0001138,2]
[398316826,1765533039091,-500.0,0.0001138,2]
[398316827,1765533039104,-1002.60341682,0.0001138,2]
[398316828,1765533039114,-500.0,0.0001138,2]
[398316829,1765533039124,-1002.60341682,0.0001138,2]
[398316830,1765533039134,-500.0,0.0001138,2]
[398316831,1765533039145,-500.0,0.0001138,2]
[398316832,1765533039156,-1002.60341682,0.0001138,2]
[398316833,1765533039166,-500.0,0.0001138,2]
[398316834,1765533039179,-1002.60341682,0.0001138,2]
[398316835,1765533039189,-500.0,0.0001138,2]
[398316837,1765533039199,-1002.60341682,0.0001138,2]
[398316839,1765533039208,-1002.60341682,0.0001138,2]
[398316840,1765533039219,-500.0,0.0001138,2]
[398316841,1765533039228,-500.0,0.0001138,2]
[398316842,1765533039238,-1002.60341682,0.0001138,2]
[398316843,1765533039247,-500.0,0.0001138,2]
[398316844,1765533039259,-1002.60341682,0.0001138,2]
[398316845,1765533039268,-500.0,0.0001138,2]
[398316846,1765533039277,-1002.60341682,0.0001138,2]
[398316847,1765533039286,-500.0,0.0001138,2]
[398316848,1765533039296,-1002.60341682,0.0001138,2]
[398316849,1765533039305,-500.0,0.0001138,2]
[398316850,1765533039315,-1002.60341682,0.0001138,2]
[398316851,1765533039324,-500.0,0.0001138,2]
[398316852,1765533039333,-500.0,0.0001138,2]
[398316853,1765533039343,-1002.60341682,0.0001138,2]
[398316854,1765533039352,-1002.60341682,0.0001138,2]
[398316855,1765533039361,-1002.60341682,0.0001138,2]
[398316856,1765533039370,-1002.60341682,0.0001138,2]
[398316857,1765533039379,-1002.60341682,0.0001138,2]
[398316858,1765533039389,-1002.60341682,0.0001138,2]
[398316859,1765533039398,-1002.60341682,0.0001138,2]
[398316860,1765533039407,-1002.60341682,0.0001138,2]
[398316861,1765533039416,-1002.60341682,0.0001138,2]
[398316862,1765533039426,-1002.60341682,0.0001138,2]
[398316863,1765533039434,-1002.60341682,0.0001138,2]
[398316864,1765533039444,-1002.60341682,0.0001138,2]
[398316865,1765533039500,-1002.60341682,0.0001138,2]
[398316866,1765533039510,-1002.60341682,0.0001138,2]
[398316867,1765533039519,-1002.60341682,0.0001138,2]
[398316868,1765533039529,-1002.60341682,0.0001138,2]
[398316870,1765533039538,-1002.60341682,0.0001138,2]
[398316871,1765533039547,-1002.60341682,0.0001138,2]
[398316872,1765533039556,-1002.60341682,0.0001138,2]
[398316873,1765533039565,-1002.60341682,0.0001138,2]
[398316874,1765533039574,-1002.60341682,0.0001138,2]
[398316875,1765533039583,-1002.60341682,0.0001138,2]
[398316877,1765533039592,-1002.60341682,0.0001138,2]
[398316879,1765533039601,-300.0,0.00011383,2]
[398316880,1765533039611,-595.37131296,0.00011383,2]
[398316882,1765533039620,-2876.18991768,0.00011383,2]
[398316883,1765533039629,-2000.0,0.00011398,2]
[398316884,1765533039638,-500.0,0.00011399,2]
[398316886,1765533039647,-200.80552196,0.00011507,2]
[398316887,1765533039656,-547.94459528,0.00011677,2]
[398316888,1765533039665,-1050.0,0.00011744,2]
[398316889,1765533039674,-216.92003386,0.00011799,2]
[398316890,1765533039683,-194.90362435,0.00011834,2]
[398316891,1765533039692,-163.0,0.000119,2]
[398316892,1765533039701,-617.40005154,0.00011931,2]
[398316893,1765533039710,-1181.73348659,0.00011931,2]
[398316894,1765533039719,-879.03,0.00011932,2]
[398316895,1765533039728,-500.0,0.00012034,2]
[398316896,1765533039737,-500.0,0.00012035,2]
[398316897,1765533039746,-500.0,0.00012035,2]
[398316898,1765533039756,-500.0,0.00012035,2]
[398316899,1765533039765,-500.0,0.00012035,2]
[398316900,1765533039775,-528.67922635,0.00012035,2]
[398316901,1765533039784,-211.41041567,0.00012147,3]
[398316902,1765533039793,-587.0,0.00012155,2]
[398316903,1765533039802,-500.0,0.00012172,2]
[398316904,1765533039811,-20000.0,0.00012204,2]
[398316905,1765533039821,-500.0,0.00012309,2]
[398316906,1765533039830,-151.0,0.00012329,2]
[398316907,1765533039839,-151.0,0.00012329,2]
[398316908,1765533039848,-151.917416,0.00012329,2]
[398316909,1765533039857,-151.0,0.00012329,2]
[398316910,1765533039866,-151.0,0.00012329,2]
[398316911,1765533039876,-151.0,0.00012329,2]
[398316912,1765533039885,-151.0,0.00012329,2]
[398316913,1765533039894,-151.0,0.00012329,2]
[398316914,1765533039905,-282.259687,0.00012329,2]
[398316916,1765533039914,-151.0,0.00012329,2]
[398316918,1765533039923,-151.0,0.00012329,2]
[398316919,1765533039932,-173.510731,0.00012329,2]
[398316920,1765533039942,-151.0,0.00012329,2]
[398316921,1765533039951,-151.0,0.00012329,2]
[398316922,1765533039960,-169.139877,0.00012329,2]
[398316923,1765533039970,-151.629103,0.00012329,2]
[398316924,1765533039980,-151.0,0.00012329,2]
[398316925,1765533039989,-151.0,0.00012329,2]
[398316926,1765533039998,-151.0,0.00012329,2]
[398316927,1765533040008,-151.0,0.00012329,2]
[398316928,1765533040018,-151.0,0.00012329,2]
[398316929,1765533040028,-151.0,0.00012329,2]
[398316930,1765533040037,-151.0,0.00012329,2]
[398316931,1765533040046,-151.0,0.00012329,2]
[398316932,1765533040055,-151.0,0.00012329,2]
[398316933,1765533040064,-151.0,0.00012329,2]
[398316934,1765533040074,-151.0,0.00012329,2]
[398316935,1765533040083,-151.0,0.00012329,2]
[398316936,1765533040092,-239.000018,0.00012329,2]
[398316937,1765533040102,-165.3871581,0.00012329,2]
[398316938,1765533040111,-165.3871583,0.00012329,2]
[398316939,1765533040120,-500.0,0.00012446,2]
[398316940,1765533040129,-640.24385345,0.00012479,2]
[398316941,1765533040139,-500.0,0.00012583,2]
[398316942,1765533040148,-988.91,0.00012595,2]
[398316943,1765533040157,-317.66099988,0.0001272,2]
[398316944,1765533040167,-204.0,0.00012774,2]
[398316945,1765533040176,-17611.20717986,0.000129,2]
[398316946,1765533040194,-100.4542444,0.000129,2]
[398316947,1765533040203,-1823.18871627,0.00012999,2]
[398316948,1765533040214,-2904.26671385,0.00012999,2]
[398316979,1765533042837,-374.1757,0.000109,2]
[398316982,1765533042847,-674.8351,0.000109,2]
[398316983,1765533042856,-674.8351,0.00011118,2]
[398316985,1765533042866,-1002.60341682,0.0001138,2]
[398316988,1765533042876,-1002.60341682,0.0001138,2]
[398316990,1765533042885,-836.81357736,0.0001138,2]
[398316992,1765533042897,-165.78983946,0.0001138,2]
[398316994,1765533042906,-108.72767442,0.00011445,2]
[398316996,1765533042916,-566.10742558,0.00011445,2]
[398316998,1765533042926,-59.67763215,0.00012387,2]
[398317181,1765533045808,-235.62878677,0.00012387,2]
[398317183,1765533045818,-119.67121323,0.00012535,2]
[398317268,1765533046677,-383.53,0.00012535,2]
[398317271,1765533046688,-171.63388677,0.00012535,2]
[398317273,1765533046697,-356.22788757,0.00012999,2]
[398317277,1765533076557,150.0,7.316e-05,2]
[398317278,1765533077130,244.78,7.981e-05,2]
[398317289,1765533101438,-367.17,8.647e-05,2]
[398317290,1765533155567,150.0,7.326e-05,2]
[398317291,1765533155979,226.09,7.992e-05,2]
[398317293,1765533235630,150.0,7.346e-05,2]
[398317294,1765533236062,248.31,8.014e-05,2]
[398317295,1765533245161,-5000.0,8.595e-05,2]
[398317296,1765533247141,0.01,8.509e-05,2]
[398317297,1765533247171,4999.99,8.509e-05,2]
[398317298,1765533275333,-5000.0,8.509e-05,2]
[398317299,1765533292287,5000.0,8.509e-05,2]
[398317300,1765533314760,5000.0,8.552e-05,2]
[398317301,1765533317685,0.01,7.303e-05,2]
[398317302,1765533317711,217.36,7.303e-05,2]
[398317303,1765533318093,434.74,7.967e-05,2]
[398317304,1765533336856,5000.0,8.552e-05,2]
[398317305,1765533359222,4347.91,8.552e-05,2]
[398317306,1765533359244,652.09,8.552e-05,2]
[398317307,1765533368253,-150.0,8.552e-05,2]
[398317308,1765533368290,-4700.01,8.595e-05,2]
[398317309,1765533368372,-299.99,8.595e-05,2]
[398317310,1765533374986,5000.0,8.595e-05,2]
[398317311,1765533382903,4400.03,8.595e-05,2]
[398317312,1765533382926,599.97,8.595e-05,2]
[398317313,1765533399035,209.07,7.3e-05,2]
[398317314,1765533399445,418.14,7.963e-05,2]
[398317315,1765533399839,627.21,8.627e-05,2]
[398317316,1765533405927,5000.0,8.672e-05,2]
[398317317,1765533428566,3745.59,8.672e-05,2]
[398317318,1765533428590,1254.41,8.672e-05,2]
[398317319,1765533451094,5000.0,8.672e-05,2]
[398317320,1765533479507,193.11,7.393e-05,2]
[398317321,1765533479892,386.21,8.065e-05,2]
[398317322,1765533571587,185.73,7.306e-05,2]
[398317323,1765533571980,371.46,7.971e-05,2]
[398317324,1765533572398,557.2,8.635e-05,2]
[398317325,1765533595930,3306.3,8.672e-05,2]
[398317326,1765533595955,1693.7,8.672e-05,2]
[398317327,1765533618456,5000.0,8.676e-05,2]
[398317328,1765533626222,5000.0,8.676e-05,2]
[398317331,1765533641411,0.01,8.676e-05,2]
[398317332,1765533641437,4999.99,8.676e-05,2]
[398317333,1765533649207,5000.0,8.676e-05,2]
[398317334,1765533652514,0.02,7.291e-05,2]
[398317335,1765533652539,203.07,7.291e-05,2]
[398317336,1765533652637,406.18,7.954e-05,2]
[398317337,1765533653118,609.27,8.617e-05,2]
[398317338,1765533664591,5000.0,8.676e-05,2]
[398317339,1765533672410,3781.49,8.676e-05,2]
[398317340,1765533672437,1218.51,8.676e-05,2]
[398317341,1765533687567,5000.0,8.676e-05,2]
[398317342,1765533695464,5000.0,8.676e-05,2]
[398317343,1765533711278,0.01,8.676e-05,2]
[398317344,1765533711301,4999.99,8.676e-05,2]
[398317345,1765533719530,5000.0,8.676e-05,2]
[398317346,1765533733203,0.02,7.356e-05,2]
[398317347,1765533733230,216.14,7.356e-05,2]
[398317348,1765533734095,432.32,8.025e-05,2]
[398317349,1765533734722,5000.0,8.676e-05,2]
[398317350,1765533742956,4351.55,8.676e-05,2]
[398317351,1765533742978,648.45,8.676e-05,2]
[398317352,1765533758722,5000.0,8.676e-05,2]
[398317353,1765533767008,4351.56,8.676e-05,2]
[398317354,1765533767030,648.44,8.676e-05,2]
[398317355,1765533782199,5000.0,8.676e-05,2]
[398317356,1765533805210,4351.57,8.676e-05,2]
[398317357,1765533805234,648.43,8.676e-05,2]
[398317358,1765533813661,247.3,7.293e-05,2]
[398317359,1765533814640,494.6,7.956e-05,2]
[398317360,1765533815117,741.91,8.619e-05,2]
[398317361,1765533827551,5000.0,8.676e-05,2]
[398317362,1765533835350,2867.77,8.676e-05,2]
[398317363,1765533835373,2132.23,8.676e-05,2]
[398317364,1765533851845,5000.0,8.676e-05,2]
[398317365,1765533860482,2867.78,8.676e-05,2]
[398317366,1765533860508,2132.22,8.676e-05,2]
[398317367,1765533875438,5000.0,8.676e-05,2]
[398317368,1765533883183,2867.79,8.676e-05,2]
[398317369,1765533883207,2132.21,8.676e-05,2]
[398317370,1765533894521,252.36,7.297e-05,2]
[398317371,1765533894912,504.72,7.96e-05,2]
[398317372,1765533895355,757.08,8.623e-05,2]
[398317373,1765533898304,5000.0,8.676e-05,2]
[398317374,1765533906115,1353.64,8.676e-05,2]
[398317375,1765533906141,3646.36,8.676e-05,2]
[398317376,1765533929068,2140.97,8.676e-05,2]
[398317377,1765533975959,233.09,7.317e-05,2]
[398317378,1765533976379,466.18,7.982e-05,2]
[398317379,1765533976770,699.26,8.647e-05,2]
[398317380,1765534057480,215.29,7.295e-05,2]
[398317381,1765534057716,430.58,7.958e-05,2]
[398317382,1765534058121,645.87,8.621e-05,2]
[398317383,1765534079989,290.56,8.671e-05,2]
[398317384,1765534080260,290.56,8.671e-05,2]
[398317385,1765534080520,290.55,8.671e-05,2]
[398317386,1765534116274,5000.0,8.68e-05,2]
[398317387,1765534125198,2836.6,8.68e-05,2]
[398317388,1765534125220,2163.4,8.68e-05,2]
[398317389,1765534138354,220.96,7.298e-05,2]
[398317390,1765534138760,441.92,7.962e-05,2]
[398317391,1765534139238,662.89,8.625e-05,2]
[398317392,1765534140893,5000.0,8.68e-05,2]
[398317393,1765534164858,1510.84,8.68e-05,2]
[398317394,1765534164881,3489.16,8.68e-05,2]
[398317395,1765534186985,5000.0,8.68e-05,2]
[398317396,1765534224249,204.09,7.315e-05,2]
[398317397,1765534224597,408.18,7.98e-05,2]
[398317398,1765534224989,612.27,8.645e-05,2]
[398317436,1765534231934,-4606.0,8.799e-05,2]
[398317439,1765534231946,-394.0,8.799e-05,2]
[398317441,1765534231956,-153.32,8.8e-05,2]
[398317443,1765534231966,-302.68,8.888e-05,2]
[398317604,1765534240113,-150.0,8.8e-05,2]
[398317605,1765534240122,-4697.32,8.888e-05,2]
[398317606,1765534240131,-153.32,9e-05,2]
[398317607,1765534240140,-300.0,9.065e-05,2]
[398317608,1765534240149,-300.0,9.065e-05,2]
[398317609,1765534240159,-300.0,9.065e-05,2]
[398317610,1765534240168,-300.0,9.065e-05,2]
[398317611,1765534240177,-300.0,9.065e-05,2]
[398317612,1765534240186,-300.0,9.065e-05,2]
[398317613,1765534240196,-300.0,9.065e-05,2]
[398317614,1765534240205,-300.0,9.065e-05,2]
[398317615,1765534240213,-300.0,9.065e-05,2]
[398317616,1765534240224,-300.0,9.065e-05,2]
[398317617,1765534240237,-300.0,9.065e-05,2]
[398317618,1765534240246,-300.0,9.065e-05,2]
[398317619,1765534240255,-300.0,9.065e-05,2]
[398317620,1765534240264,-300.0,9.065e-05,2]
[398317621,1765534240273,-300.0,9.065e-05,2]
[398317622,1765534240283,-153.32,9.2e-05,2]
[398317623,1765534240292,-816.36,9.31e-05,2]